[Event "Sheikh Russel GM 2021"]
[Site "Dhaka"]
[Date "2021.10.23"]
[Round "5.17"]
[White "Hossain, Enamul"]
[Black "Aronyak Ghosh"]
[Result "1/2-1/2"]
[ECO "D30"]
[WhiteElo "2396"]
[BlackElo "2445"]
[Annotator "ChessBase"]
[PlyCount "67"]
[EventDate "2021.10.19"]
[EventType "swiss"]
[EventCountry "BAN"]
[SourceTitle "playchess.com"]
[Source "ChessBase"]
[SourceQuality "1"]
[TimeControl "40/5400+30:1800+30"]

1. c4 {[%emt 0:00:05]} c6 {[%emt 0:04:06]} 2. Nf3 {[%emt 0:00:38]} d5 {[%emt 0:00:59]} 3. d4 {[%emt 0:00:41]} e6 {[%emt 0:01:13]} 4. Qb3 {[%emt 0:05:32]} dxc4 {[%emt 0:00:07]} 5. Qxc4 {[%emt 0:00:03]} b5 {[%emt 0:00:06]} 6. Qd3 {[%emt 0:01:24]} Nf6 {[%emt 0:00:18]} 7. g3 {[%emt 0:00:39]} Bb7 {[%emt 0:03:21]} 8. Bg2 {[%emt 0:00:45]} Nbd7 {[%emt 0:00:43]} 9. O-O {[%emt 0:01:55]} a6 {[%emt 0:04:07]} 10. a4 {[%emt 0:03:47]} Be7 {[%emt 0:04:45]} 11. Bg5 {[%emt 0:04:53]} O-O {[%emt 0:21:43]} 12. Nc3 {[%emt 0:05:36]} Rc8 {[%emt 0:05:12]} 13. Rfd1 {[%emt 0:06:32]} b4 {[%emt 0:06:49]} 14. Bxf6 {[%emt 0:00:59]} gxf6 {[%emt 0:01:45]} 15. Ne4 {[%emt 0:14:37]} f5 {[%emt 0:02:38]} 16. Nc5 {[%emt 0:00:49]} Nxc5 {[%emt 0:03:37]} 17. dxc5 {[%emt 0:00:08]} Qxd3 {[%emt 0:00:54]} 18. Rxd3 {[%emt 0:00:03]} Rfd8 {[%emt 0:00:05]} 19. Rad1 {[%emt 0:04:36]} Rxd3 {[%emt 0:01:41]} 20. Rxd3 {[%emt 0:00:01]} Rc7 {[%emt 0:00:14]} 21. Ne5 {[%emt 0:02:50]} Bxc5 {[%emt 0:02:21]} 22. Rd8+ {[%emt 0:00:09]} Kg7 {[%emt 0:00:04]} 23. Nc4 {[%emt 0:01:10]} Bc8 {[%emt 0:01:48]} 24. b3 {[%emt 0:01:36]} Be7 {[%emt 0:01:42]} 25. Re8 {[%emt 0:04:39]} e5 {[%emt 0:12:57]} 26. Nxe5 {[%emt 0:05:17]} Be6 {[%emt 0:02:05]} 27. Nxc6 {[%emt 0:01:00]} Bc5 {[%emt 0:00:04]} 28. Rb8 {[%emt 0:02:23]} Rd7 {[%emt 0:03:34]} 29. Bf3 {[%emt 0:05:16]} Bxb3 {[%emt 0:02:04]} 30. Nxb4 {[%emt 0:01:15]} Bd6 {[%emt 0:00:04]} 31. Rb6 {[%emt 0:00:23]} Bc5 {[%emt 0:00:04]} 32. Rb8 {[%emt 0:06:58]} Bd6 {[%emt 0:00:04]} 33. Rb6 {[%emt 0:02:55]} Bc5 {[%emt 0:00:01]} 34. Rb8 {[%emt 0:02:44]} 1/2-1/2

[Event "Sheikh Russel GM 2021"]
[Site "Dhaka"]
[Date "2021.10.23"]
[Round "5.18"]
[White "Malakhatko, Vadim"]
[Black "Shahil Dey"]
[Result "1/2-1/2"]
[ECO "D11"]
[WhiteElo "2444"]
[BlackElo "2398"]
[Annotator "ChessBase"]
[PlyCount "153"]
[EventDate "2021.10.19"]
[EventType "swiss"]
[EventCountry "BAN"]
[SourceTitle "playchess.com"]
[Source "ChessBase"]
[SourceQuality "1"]
[TimeControl "40/5400+30:1800+30"]

1. d4 {[%emt 0:00:04]} d5 {[%emt 0:00:09]} 2. c4 {[%emt 0:00:08]} c6 {[%emt 0:00:22]} 3. Nf3 {[%emt 0:00:15]} Nf6 {[%emt 0:00:04]} 4. Qb3 {[%emt 0:00:09]} e6 {[%emt 0:01:09]} 5. Bg5 {[%emt 0:00:29]} Be7 {[%emt 0:00:05]} 6. e3 {[%emt 0:01:46]} h6 {[%emt 0:01:17]} 7. Bh4 {[%emt 0:00:07]} O-O {[%emt 0:02:13]} 8. Nc3 {[%emt 0:00:17]} Nbd7 {[%emt 0:03:25]} 9. Be2 {[%emt 0:03:36]} b6 {[%emt 0:04:33]} 10. O-O {[%emt 0:03:13]} Bb7 {[%emt 0:01:00]} 11. cxd5 {[%emt 0:16:10]} exd5 {[%emt 0:00:40]} 12. Nd2 {[%emt 0:06:27]} Re8 {[%emt 0:06:31]} 13. Qc2 {[%emt 0:11:20]} Rc8 {[%emt 0:05:34]} 14. Rad1 {[%emt 0:06:52]} a6 {[%emt 0:19:52]} 15. Qb1 {[%emt 0:07:52]} c5 {[%emt 0:09:08]} 16. dxc5 {[%emt 0:07:10]} bxc5 {[%emt 0:00:36]} 17. Nb3 {[%emt 0:13:44]} Qb6 {[%emt 0:01:43]} 18. Bg3 {[%emt 0:00:07]} Bd6 {[%emt 0:05:49]} 19. Bxd6 {[%emt 0:07:44]} Qxd6 {[%emt 0:00:03]} 20. Qf5 {[%emt 0:00:54]} Qb6 {[%emt 0:05:06]} 21. Rd2 {[%emt 0:00:40]} Ne5 {[%emt 0:05:34]} 22. Rfd1 {[%emt 0:04:37]} Qb4 {[%emt 0:06:13]} 23. Qc2 {[%emt 0:00:47]} Qh4 {[%emt 0:04:38]} 24. h3 {[%emt 0:03:46]} d4 {[%emt 0:04:35]} 25. exd4 {[%emt 0:00:12]} cxd4 {[%emt 0:00:05]} 26. Rxd4 {[%emt 0:01:46]} Qg5 {[%emt 0:00:09]} 27. g3 {[%emt 0:00:16]} Nf3+ {[%emt 0:00:42]} 28. Bxf3 {[%emt 0:00:05]} Bxf3 {[%emt 0:00:04]} 29. Rf1 {[%emt 0:00:34]} Nd5 {[%emt 0:06:11]} 30. Qd2 {[%emt 0:01:11]} Nxc3 {[%emt 0:00:59]} 31. bxc3 {[%emt 0:00:05]} Qb5 {[%emt 0:00:45]} 32. c4 {[%emt 0:02:42]} Rxc4 {[%emt 0:01:32]} 33. Qf4 {[%emt 0:00:20]} Rc3 {[%emt 0:01:02]} 34. Qd2 {[%emt 0:00:56]} Rcc8 {[%emt 0:00:32]} 35. Qf4 {[%emt 0:00:35]} Ba8 {[%emt 0:00:19]} 36. Nd2 {[%emt 0:00:17]} Rc2 {[%emt 0:01:25]} 37. a4 {[%emt 0:00:52]} Qc6 {[%emt 0:01:23]} 38. f3 {[%emt 0:00:05]} Rc1 {[%emt 0:00:52]} 39. Rxc1 {[%emt 0:00:45]} Qxc1+ {[%emt 0:00:01]} 40. Nf1 {[%emt 0:00:00]} Qc5 {[%emt 0:00:00]} 41. Qd6 {[%emt 0:01:11]} Qc3 {[%emt 0:03:20]} 42. Rd3 {[%emt 0:01:27]} Qc4 {[%emt 0:02:23]} 43. a5 {[%emt 0:15:25]} Qb5 {[%emt 0:02:14]} 44. g4 {[%emt 0:05:24]} Qxa5 {[%emt 0:00:51]} 45. Ra3 {[%emt 0:00:09]} Qb5 {[%emt 0:11:46]} 46. Qxa6 {[%emt 0:03:53]} Qc5+ {[%emt 0:00:07]} 47. Kg2 {[%emt 0:00:08]} Bd5 {[%emt 0:01:01]} 48. Re3 {[%emt 0:05:49]} Rb8 {[%emt 0:00:55]} 49. Qe2 {[%emt 0:01:00]} Bc6 {[%emt 0:00:58]} 50. Qd2 {[%emt 0:00:54]} h5 {[%emt 0:01:35]} 51. Rc3 {[%emt 0:00:40]} Qb5 {[%emt 0:00:10]} 52. Qc2 {[%emt 0:00:35]} Rc8 {[%emt 0:01:17]} 53. Qd2 {[%emt 0:00:49]} Re8 {[%emt 0:02:03]} 54. Kf2 {[%emt 0:00:10]} Bb7 {[%emt 0:01:27]} 55. Re3 {[%emt 0:00:29]} Rc8 {[%emt 0:00:03]} 56. Rc3 {[%emt 0:00:44]} Qb6+ {[%emt 0:00:49]} 57. Kg2 {[%emt 0:00:27]} Ra8 {[%emt 0:00:46]} 58. gxh5 {[%emt 0:00:37]} Qe6 {[%emt 0:00:21]} 59. Re3 {[%emt 0:00:37]} Qc4 {[%emt 0:00:50]} 60. Rc3 {[%emt 0:00:16]} Qh4 {[%emt 0:02:38]} 61. Nh2 {[%emt 0:00:36]} Qxh5 {[%emt 0:00:28]} 62. Rd3 {[%emt 0:00:29]} Qg6+ {[%emt 0:01:31]} 63. Ng4 {[%emt 0:00:25]} Qf5 {[%emt 0:01:17]} 64. Kg3 {[%emt 0:01:21]} Re8 {[%emt 0:00:31]} 65. Re3 {[%emt 0:00:00]} Rc8 {[%emt 0:00:12]} 66. Rc3 {[%emt 0:00:00]} Ra8 {[%emt 0:00:26]} 67. Rd3 {[%emt 0:00:00]} Kh7 {[%emt 0:00:42]} 68. Rb3 {[%emt 0:00:17]} Ba6 {[%emt 0:02:03]} 69. Rb6 {[%emt 0:00:29]} Bc4 {[%emt 0:01:01]} 70. Rc6 {[%emt 0:00:36]} Be6 {[%emt 0:01:21]} 71. Qc2 {[%emt 0:00:08]} Ra3 {[%emt 0:00:08]} 72. Qxf5+ {[%emt 0:00:16]} Bxf5 {[%emt 0:00:02]} 73. Rc7 {[%emt 0:01:22]} Be6 {[%emt 0:00:11]} 74. Kf2 {[%emt 0:00:40]} Bd5 {[%emt 0:00:09]} 75. Ne3 {[%emt 0:00:12]} Be6 {[%emt 0:00:07]} 76. Ng4 {[%emt 0:00:20]} Kg6 {[%emt 0:00:32]} 77. Rc5 {[%emt 0:00:09]} 1/2-1/2

[Event "Sheikh Russel GM 2021"]
[Site "Dhaka"]
[Date "2021.10.23"]
[Round "5.19"]
[White "Srijit Paul"]
[Black "Das, Sayantan"]
[Result "1-0"]
[ECO "B90"]
[WhiteElo "2332"]
[BlackElo "2444"]
[Annotator "ChessBase"]
[PlyCount "129"]
[EventDate "2021.10.19"]
[EventType "swiss"]
[EventCountry "BAN"]
[SourceTitle "playchess.com"]
[Source "ChessBase"]
[SourceQuality "1"]
[TimeControl "40/5400+30:1800+30"]

1. e4 {[%emt 0:00:03]} c5 {[%emt 0:00:38]} 2. Nf3 {[%emt 0:00:09]} d6 {[%emt 0:00:12]} 3. d4 {[%emt 0:00:31]} cxd4 {[%emt 0:00:07]} 4. Nxd4 {[%emt 0:00:05]} Nf6 {[%emt 0:00:06]} 5. Nc3 {[%emt 0:00:05]} a6 {[%emt 0:00:05]} 6. Be3 {[%emt 0:03:14]} e5 {[%emt 0:00:13]} 7. Nb3 {[%emt 0:00:05]} Be6 {[%emt 0:00:32]} 8. Qd2 {[%emt 0:00:09]} Nbd7 {[%emt 0:01:12]} 9. f3 {[%emt 0:00:52]} h5 {[%emt 0:00:06]} 10. O-O-O {[%emt 0:01:14]} Rc8 {[%emt 0:03:59]} 11. h3 {[%emt 0:00:57]} b5 {[%emt 0:03:29]} 12. Qf2 {[%emt 0:07:20]} Rxc3 {[%emt 0:15:23]} 13. bxc3 {[%emt 0:00:06]} d5 {[%emt 0:01:20]} 14. Bd3 {[%emt 0:01:37]} Ba3+ {[%emt 0:02:01]} 15. Kd2 {[%emt 0:00:16]} Qa8 {[%emt 0:11:26]} 16. Nc5 {[%emt 0:12:35]} Bxc5 {[%emt 0:16:28]} 17. Bxc5 {[%emt 0:00:15]} dxe4 {[%emt 0:00:15]} 18. fxe4 {[%emt 0:00:18]} Nxe4+ {[%emt 0:01:25]} 19. Bxe4 {[%emt 0:00:05]} Qxe4 {[%emt 0:00:06]} 20. Kc1 {[%emt 0:00:55]} Qc4 {[%emt 0:02:42]} 21. Bd6 {[%emt 0:12:28]} Qxc3 {[%emt 0:09:41]} 22. Qa7 {[%emt 0:00:10]} Qc8 {[%emt 0:05:22]} 23. Bb4 {[%emt 0:03:30]} Bf5 {[%emt 0:04:58]} 24. c3 {[%emt 0:05:48]} Rh6 {[%emt 0:04:51]} 25. Rd5 {[%emt 0:06:24]} Rc6 {[%emt 0:07:34]} 26. Rxe5+ {[%emt 0:07:30]} Be6 {[%emt 0:00:06]} 27. Re3 {[%emt 0:01:04]} a5 {[%emt 0:03:20]} 28. Qxa5 {[%emt 0:00:07]} Qb7 {[%emt 0:00:36]} 29. Rd1 {[%emt 0:04:25]} f6 {[%emt 0:03:02]} 30. a4 {[%emt 0:01:13]} Rb6 {[%emt 0:01:38]} 31. axb5 {[%emt 0:07:23]} Ne5 {[%emt 0:03:07]} 32. Rd6 {[%emt 0:12:53]} Rxd6 {[%emt 0:00:00]} 33. Bxd6 {[%emt 0:00:02]} Nc4 {[%emt 0:00:00]} 34. Rxe6+ {[%emt 0:03:45]} Kf7 {[%emt 0:00:03]} 35. Qb4 {[%emt 0:03:46]} Kxe6 {[%emt 0:00:19]} 36. Qxc4+ {[%emt 0:00:02]} Kxd6 {[%emt 0:00:02]} 37. Qd4+ {[%emt 0:00:01]} Ke6 {[%emt 0:00:55]} 38. b6 {[%emt 0:00:40]} h4 {[%emt 0:01:11]} 39. Qc5 {[%emt 0:01:17]} g5 {[%emt 0:00:42]} 40. Kd1 {[%emt 0:00:00]} f5 {[%emt 0:00:00]} 41. c4 {[%emt 0:10:55]} Qxg2 {[%emt 0:06:12]} 42. Qc8+ {[%emt 0:01:38]} Ke5 {[%emt 0:06:44]} 43. Qh8+ {[%emt 0:00:07]} Kd6 {[%emt 0:05:11]} 44. Qf8+ {[%emt 0:00:49]} Ke6 {[%emt 0:03:31]} 45. Qh6+ {[%emt 0:03:38]} Kd7 {[%emt 0:03:27]} 46. Qg7+ {[%emt 0:00:15]} Ke6 {[%emt 0:01:29]} 47. Qg8+ {[%emt 0:05:58]} Kd6 {[%emt 0:01:49]} 48. Qf8+ {[%emt 0:00:44]} Ke6 {[%emt 0:00:15]} 49. Qd8 {[%emt 0:05:55]} g4 {[%emt 0:02:35]} 50. hxg4 {[%emt 0:00:49]} fxg4 {[%emt 0:00:48]} 51. Qg8+ {[%emt 0:02:51]} Kd6 {[%emt 0:01:02]} 52. Qf8+ {[%emt 0:00:16]} Ke6 {[%emt 0:01:07]} 53. Qh6+ {[%emt 0:00:23]} Kd7 {[%emt 0:00:38]} 54. Qh7+ {[%emt 0:00:53]} Ke6 {[%emt 0:00:47]} 55. b7 {[%emt 0:01:29]} Qf1+ {[%emt 0:02:00]} 56. Kd2 {[%emt 0:00:04]} Qf2+ {[%emt 0:00:14]} 57. Kc3 {[%emt 0:00:27]} Qe3+ {[%emt 0:01:12]} 58. Qd3 {[%emt 0:00:29]} Qe5+ {[%emt 0:00:26]} 59. Kb3 {[%emt 0:00:12]} Qc7 {[%emt 0:00:39]} 60. Qd5+ {[%emt 0:00:08]} Ke7 {[%emt 0:00:15]} 61. c5 {[%emt 0:00:11]} Qg3+ {[%emt 0:00:50]} 62. Ka4 {[%emt 0:00:06]} Qf4+ {[%emt 0:00:12]} 63. Ka5 {[%emt 0:00:14]} Qc7+ {[%emt 0:00:36]} 64. Ka6 {[%emt 0:00:05]} Ke8 {[%emt 0:00:17]} 65. Qe6+ {[%emt 0:00:06]} 1-0

[Event "Sheikh Russel GM 2021"]
[Site "Dhaka"]
[Date "2021.10.23"]
[Round "5.20"]
[White "Mohammad Nubairshah Shaikh"]
[Black "Mohammad Minhaz Uddin"]
[Result "1/2-1/2"]
[ECO "A17"]
[WhiteElo "2440"]
[BlackElo "2264"]
[Annotator "ChessBase"]
[PlyCount "136"]
[EventDate "2021.10.19"]
[EventType "swiss"]
[EventCountry "BAN"]
[SourceTitle "playchess.com"]
[Source "ChessBase"]
[SourceQuality "1"]
[TimeControl "40/5400+30:1800+30"]

1. Nf3 {[%emt 0:00:17]} Nf6 {[%emt 0:07:48]} 2. c4 {[%emt 0:00:03]} e6 {[%emt 0:00:19]} 3. Nc3 {[%emt 0:00:02]} Bb4 {[%emt 0:01:28]} 4. Qc2 {[%emt 0:00:03]} O-O {[%emt 0:00:26]} 5. a3 {[%emt 0:00:02]} Bxc3 {[%emt 0:00:09]} 6. Qxc3 {[%emt 0:00:02]} d6 {[%emt 0:01:50]} 7. g3 {[%emt 0:00:45]} e5 {[%emt 0:08:47]} 8. d3 {[%emt 0:00:20]} e4 {[%emt 0:05:54]} 9. dxe4 {[%emt 0:03:43]} Nxe4 {[%emt 0:00:03]} 10. Qc2 {[%emt 0:00:08]} Bf5 {[%emt 0:00:20]} 11. Nh4 {[%emt 0:03:57]} Qf6 {[%emt 0:05:06]} 12. Bg2 {[%emt 0:06:57]} Re8 {[%emt 0:03:15]} 13. Nxf5 {[%emt 0:01:21]} Qxf5 {[%emt 0:00:04]} 14. Be3 {[%emt 0:01:11]} Qa5+ {[%emt 0:01:27]} 15. b4 {[%emt 0:04:46]} Qe5 {[%emt 0:14:23]} 16. O-O {[%emt 0:00:28]} a5 {[%emt 0:00:02]} 17. Rad1 {[%emt 0:04:56]} axb4 {[%emt 0:00:54]} 18. Rd5 {[%emt 0:01:42]} Qe6 {[%emt 0:04:49]} 19. axb4 {[%emt 0:01:17]} Nc6 {[%emt 0:00:31]} 20. Rb1 {[%emt 0:01:12]} Qg6 {[%emt 0:03:28]} 21. b5 {[%emt 0:27:18]} Nd8 {[%emt 0:26:13]} 22. Rdd1 {[%emt 0:00:25]} Ra3 {[%emt 0:10:49]} 23. b6 {[%emt 0:20:45]} Nc3 {[%emt 0:01:21]} 24. Qxg6 {[%emt 0:20:50]} hxg6 {[%emt 0:00:07]} 25. bxc7 {[%emt 0:00:00]} Ne6 {[%emt 0:00:22]} 26. Ra1 {[%emt 0:00:00]} Rxa1 {[%emt 0:01:31]} 27. Rxa1 {[%emt 0:00:00]} Nxc7 {[%emt 0:00:02]} 28. Ra3 {[%emt 0:00:00]} Ne4 {[%emt 0:02:06]} 29. Bb6 {[%emt 0:00:00]} Na6 {[%emt 0:00:23]} 30. Rd3 {[%emt 0:00:00]} Nec5 {[%emt 0:00:57]} 31. Rxd6 {[%emt 0:00:00]} Rxe2 {[%emt 0:00:03]} 32. Bd5 {[%emt 0:00:00]} Re1+ {[%emt 0:00:42]} 33. Kg2 {[%emt 0:00:00]} Kf8 {[%emt 0:00:21]} 34. Ba5 {[%emt 0:01:16]} Ra1 {[%emt 0:00:31]} 35. Bc3 {[%emt 0:00:08]} Rc1 {[%emt 0:00:15]} 36. Bd2 {[%emt 0:01:30]} Rc2 {[%emt 0:00:23]} 37. Be3 {[%emt 0:00:34]} Rb2 {[%emt 0:00:59]} 38. Bg5 {[%emt 0:01:57]} f6 {[%emt 0:00:24]} 39. Bc1 {[%emt 0:00:01]} Rc2 {[%emt 0:00:51]} 40. Ba3 {[%emt 0:00:00]} Ke8 {[%emt 0:00:00]} 41. Rb6 {[%emt 0:02:12]} Ra2 {[%emt 0:05:13]} 42. Bc1 {[%emt 0:12:46]} Nb8 {[%emt 0:08:18]} 43. Be3 {[%emt 0:08:06]} Nbd7 {[%emt 0:00:32]} 44. Bxc5 {[%emt 0:02:44]} Nxc5 {[%emt 0:00:03]} 45. Bxb7 {[%emt 0:00:02]} Nd3 {[%emt 0:00:49]} 46. Be4 {[%emt 0:00:21]} Nxf2 {[%emt 0:05:15]} 47. Bxg6+ {[%emt 0:00:02]} Kd8 {[%emt 0:00:01]} 48. Rb8+ {[%emt 0:04:46]} Kc7 {[%emt 0:00:30]} 49. Rg8 {[%emt 0:00:05]} Ng4+ {[%emt 0:00:33]} 50. Kh3 {[%emt 0:00:59]} Nxh2 {[%emt 0:04:16]} 51. Rxg7+ {[%emt 0:00:01]} Kd6 {[%emt 0:00:02]} 52. Rf7 {[%emt 0:01:49]} Ke6 {[%emt 0:00:33]} 53. Rb7 {[%emt 0:00:02]} Nf3 {[%emt 0:00:22]} 54. Bf7+ {[%emt 0:01:47]} Kf5 {[%emt 0:00:43]} 55. Rb5+ {[%emt 0:00:14]} Ne5 {[%emt 0:00:11]} 56. Bd5 {[%emt 0:00:33]} Rc2 {[%emt 0:00:24]} 57. Ra5 {[%emt 0:02:58]} Kg5 {[%emt 0:00:05]} 58. Be6 {[%emt 0:00:45]} Kg6 {[%emt 0:03:02]} 59. Rc5 {[%emt 0:00:11]} Rf2 {[%emt 0:02:20]} 60. Rc8 {[%emt 0:01:25]} f5 {[%emt 0:01:30]} 61. Rf8 {[%emt 0:00:24]} Kg7 {[%emt 0:00:31]} 62. Rg8+ {[%emt 0:00:40]} Kf6 {[%emt 0:00:02]} 63. Bxf5 {[%emt 0:00:32]} Rxf5 {[%emt 0:00:11]} 64. Rf8+ {[%emt 0:00:07]} Nf7 {[%emt 0:00:02]} 65. Rc8 {[%emt 0:00:22]} Ng5+ {[%emt 0:00:44]} 66. Kg4 {[%emt 0:00:10]} Ne6 {[%emt 0:00:02]} 67. c5 {[%emt 0:00:50]} Rg5+ {[%emt 0:01:09]} 68. Kh4 {[%emt 0:00:02]} Ke5 {[%emt 0:01:56]} 1/2-1/2

[Event "Sheikh Russel GM 2021"]
[Site "Dhaka"]
[Date "2021.10.23"]
[Round "5.21"]
[White "Sourath Biswas"]
[Black "Haznedaroglu, Kivanc"]
[Result "0-1"]
[ECO "A45"]
[WhiteElo "2270"]
[BlackElo "2438"]
[Annotator "ChessBase"]
[PlyCount "170"]
[EventDate "2021.10.19"]
[EventType "swiss"]
[EventCountry "BAN"]
[SourceTitle "playchess.com"]
[Source "ChessBase"]
[SourceQuality "1"]
[TimeControl "40/5400+30:1800+30"]

1. d4 {[%emt 0:01:42]} Nf6 {[%emt 0:00:13]} 2. Bf4 {[%emt 0:00:07]} c5 {[%emt 0:00:32]} 3. e3 {[%emt 0:00:06]} b6 {[%emt 1:31:15]} 4. c4 {[%emt 0:00:29]} cxd4 {[%emt 0:00:00]} 5. exd4 {[%emt 0:00:06]} Bb7 {[%emt 0:00:00]} 6. Nc3 {[%emt 0:01:11]} g6 {[%emt 0:00:00]} 7. Nb5 {[%emt 0:09:39]} d6 {[%emt 0:00:00]} 8. Qe2 {[%emt 0:17:54]} Ne4 {[%emt 0:00:00]} 9. f3 {[%emt 0:05:18]} a6 {[%emt 0:00:00]} 10. fxe4 {[%emt 0:00:40]} axb5 {[%emt 0:00:00]} 11. cxb5 {[%emt 0:00:06]} Bg7 {[%emt 0:00:00]} 12. Nf3 {[%emt 0:00:04]} O-O {[%emt 0:00:00]} 13. Qc2 {[%emt 0:00:07]} e5 {[%emt 0:00:00]} 14. Bg5 {[%emt 0:07:13]} Qc8 {[%emt 0:00:00]} 15. Bd3 {[%emt 0:03:01]} exd4 {[%emt 0:00:00]} 16. O-O {[%emt 0:01:59]} Nd7 {[%emt 0:00:00]} 17. Be7 {[%emt 0:07:39]} Qxc2 {[%emt 0:00:00]} 18. Bxc2 {[%emt 0:00:21]} Rfc8 {[%emt 0:00:00]} 19. Bb3 {[%emt 0:21:19]} Nc5 {[%emt 0:00:00]} 20. Bd5 {[%emt 0:00:04]} Bxd5 {[%emt 0:00:00]} 21. exd5 {[%emt 0:00:16]} Ne4 {[%emt 0:00:00]} 22. Rfc1 {[%emt 0:00:10]} Rc5 {[%emt 0:00:00]} 23. Rxc5 {[%emt 0:01:43]} dxc5 {[%emt 0:00:00]} 24. d6 {[%emt 0:00:07]} Bf8 {[%emt 0:00:00]} 25. Ne5 {[%emt 0:06:03]} Nxd6 {[%emt 0:00:00]} 26. Bxd6 {[%emt 0:10:28]} Bxd6 {[%emt 0:00:00]} 27. Nc4 {[%emt 0:00:05]} Bc7 {[%emt 0:00:00]} 28. a4 {[%emt 0:00:02]} Kf8 {[%emt 0:00:00]} 29. Kf2 {[%emt 0:00:25]} Ke7 {[%emt 0:00:00]} 30. Ke2 {[%emt 0:00:12]} Kd7 {[%emt 0:00:00]} 31. Kd3 {[%emt 0:00:15]} Re8 {[%emt 0:00:00]} 32. h3 {[%emt 0:02:36]} h5 {[%emt 0:00:00]} 33. a5 {[%emt 0:02:58]} bxa5 {[%emt 0:00:00]} 34. b6 {[%emt 0:00:04]} Bb8 {[%emt 0:00:00]} 35. Nxa5 {[%emt 0:00:12]} Re3+ {[%emt 0:00:00]} 36. Kc4 {[%emt 0:00:05]} Re2 {[%emt 0:00:00]} 37. Kxc5 {[%emt 0:00:59]} Rxb2 {[%emt 0:00:00]} 38. Nc4 {[%emt 0:00:04]} Rxg2 {[%emt 0:00:00]} 39. Ra8 {[%emt 0:00:04]} Bh2 {[%emt 0:00:00]} 40. b7 {[%emt 0:00:00]} d3 {[%emt 0:00:00]} 41. b8=Q {[%emt 0:06:33]} Bxb8 {[%emt 0:00:00]} 42. Rxb8 {[%emt 0:00:03]} d2 {[%emt 0:00:00]} 43. Rb7+ {[%emt 0:00:35]} Ke6 {[%emt 0:00:00]} 44. Rb6+ {[%emt 0:00:04]} Ke7 {[%emt 0:00:00]} 45. Rd6 {[%emt 0:01:09]} Rh2 {[%emt 0:00:00]} 46. h4 {[%emt 0:00:44]} Rxh4 {[%emt 0:00:00]} 47. Rxd2 {[%emt 0:00:04]} Rf4 {[%emt 0:00:00]} 48. Kd5 {[%emt 0:04:07]} h4 {[%emt 0:00:00]} 49. Ne5 {[%emt 0:00:52]} Kf6 {[%emt 0:00:00]} 50. Nd3 {[%emt 0:00:12]} Ra4 {[%emt 0:00:00]} 51. Nc5 {[%emt 0:04:42]} Rg4 {[%emt 0:54:00]} 52. Ne4+ {[%emt 0:02:15]} Kg7 {[%emt 0:00:00]} 53. Ke5 {[%emt 0:02:13]} Rg1 {[%emt 0:00:00]} 54. Kf4 {[%emt 0:14:00]} f5 {[%emt 0:00:00]} 55. Nd6 {[%emt 0:01:31]} Kf6 {[%emt 0:00:00]} 56. Ne8+ {[%emt 0:00:20]} Kf7 {[%emt 0:00:00]} 57. Re2 {[%emt 0:00:05]} Rg4+ {[%emt 0:00:00]} 58. Kf3 {[%emt 0:00:05]} Rd4 {[%emt 0:00:00]} 59. Nc7 {[%emt 0:00:54]} g5 {[%emt 0:00:00]} 60. Ne6 {[%emt 0:00:06]} Rd3+ {[%emt 0:00:00]} 61. Kg2 {[%emt 0:01:00]} Kg6 {[%emt 0:00:00]} 62. Rf2 {[%emt 0:00:37]} Kf6 {[%emt 0:00:00]} 63. Nf8 {[%emt 0:00:36]} Rg3+ {[%emt 0:00:00]} 64. Kh2 {[%emt 0:00:06]} g4 {[%emt 0:00:00]} 65. Nh7+ {[%emt 0:00:28]} Kg7 {[%emt 0:00:00]} 66. Ng5 {[%emt 0:01:31]} Kg6 {[%emt 0:00:00]} 67. Ne6 {[%emt 0:00:04]} Re3 {[%emt 0:00:00]} 68. Nf8+ {[%emt 0:00:40]} Kf6 {[%emt 0:00:00]} 69. Nh7+ {[%emt 0:00:03]} Ke5 {[%emt 0:00:00]} 70. Ra2 {[%emt 0:00:19]} Rd3 {[%emt 0:00:00]} 71. Nf8 {[%emt 0:00:21]} Rd6 {[%emt 0:00:00]} 72. Nh7 {[%emt 0:01:25]} Rd3 {[%emt 0:00:00]} 73. Nf8 {[%emt 0:00:16]} h3 {[%emt 0:00:00]} 74. Ng6+ {[%emt 0:00:15]} Kf6 {[%emt 0:00:00]} 75. Nf4 {[%emt 0:00:07]} Rf3 {[%emt 0:00:00]} 76. Nh5+ {[%emt 0:02:07]} Kg5 {[%emt 0:00:00]} 77. Ng3 {[%emt 0:00:04]} Kh4 {[%emt 0:00:00]} 78. Nh1 {[%emt 0:00:08]} f4 {[%emt 0:00:00]} 79. Ra4 {[%emt 0:00:14]} Rf1 {[%emt 0:00:00]} 80. Rb4 {[%emt 0:00:22]} g3+ {[%emt 0:00:00]} 81. Nxg3 {[%emt 0:00:06]} Rf2+ {[%emt 0:00:00]} 82. Kg1 {[%emt 0:00:22]} Kxg3 {[%emt 0:00:00]} 83. Rb3+ {[%emt 0:00:07]} f3 {[%emt 0:00:00]} 84. Rb1 {[%emt 0:00:17]} Rg2+ {[%emt 0:00:00]} 85. Kh1 {[%emt 0:00:04]} Rh2+ {[%emt 0:17:00]} 0-1

[Event "Sheikh Russel GM 2021"]
[Site "Dhaka"]
[Date "2021.10.23"]
[Round "5.22"]
[White "Mohammad Fahad, Rahman"]
[Black "Sadikhov, Ulvi"]
[Result "1-0"]
[ECO "E92"]
[WhiteElo "2330"]
[BlackElo "2517"]
[Annotator "ChessBase"]
[PlyCount "81"]
[EventDate "2021.10.19"]
[EventType "swiss"]
[EventCountry "BAN"]
[SourceTitle "playchess.com"]
[Source "ChessBase"]
[SourceQuality "1"]
[TimeControl "40/5400+30:1800+30"]

1. d4 {[%emt 0:00:07]} Nf6 {[%emt 0:00:49]} 2. c4 {[%emt 0:00:07]} d6 {[%emt 0:00:07]} 3. Nf3 {[%emt 0:00:19]} g6 {[%emt 0:00:44]} 4. Nc3 {[%emt 0:00:10]} Bg7 {[%emt 0:00:07]} 5. e4 {[%emt 0:00:07]} O-O {[%emt 0:01:50]} 6. Be2 {[%emt 0:00:05]} e5 {[%emt 0:00:31]} 7. Be3 {[%emt 0:00:09]} c6 {[%emt 0:02:41]} 8. d5 {[%emt 0:00:34]} Ng4 {[%emt 1:27:41]} 9. Bg5 {[%emt 0:00:21]} f6 {[%emt 0:00:00]} 10. Bc1 {[%emt 0:00:07]} f5 {[%emt 0:00:00]} 11. exf5 {[%emt 0:04:03]} gxf5 {[%emt 0:00:00]} 12. Bg5 {[%emt 0:00:16]} Qe8 {[%emt 0:00:00]} 13. O-O {[%emt 0:14:43]} e4 {[%emt 0:00:00]} 14. Nd4 {[%emt 0:11:23]} Qe5 {[%emt 0:00:00]} 15. Bxg4 {[%emt 0:00:26]} fxg4 {[%emt 0:00:00]} 16. Be3 {[%emt 0:00:26]} Bd7 {[%emt 0:00:00]} 17. Qc2 {[%emt 0:16:51]} Re8 {[%emt 0:00:00]} 18. Nde2 {[%emt 0:03:40]} c5 {[%emt 0:00:00]} 19. Ng3 {[%emt 0:03:39]} Na6 {[%emt 0:00:00]} 20. Qxe4 {[%emt 0:03:44]} Qf6 {[%emt 0:00:00]} 21. Qb1 {[%emt 0:02:07]} Re5 {[%emt 0:00:00]} 22. Nce4 {[%emt 0:12:57]} Qf8 {[%emt 0:00:00]} 23. Ng5 {[%emt 0:04:29]} Bf5 {[%emt 0:00:00]} 24. Nxf5 {[%emt 0:00:50]} Qxf5 {[%emt 0:00:00]} 25. Ne6 {[%emt 0:00:21]} Qxb1 {[%emt 0:00:00]} 26. Raxb1 {[%emt 0:00:09]} Re4 {[%emt 0:00:00]} 27. b3 {[%emt 0:01:17]} Nb4 {[%emt 0:00:00]} 28. Bf4 {[%emt 0:01:09]} Nxa2 {[%emt 0:06:14]} 29. Bxd6 {[%emt 0:02:49]} Nc3 {[%emt 0:00:32]} 30. Rbe1 {[%emt 0:00:08]} Re8 {[%emt 0:01:34]} 31. Bxc5 {[%emt 0:01:11]} Ne2+ {[%emt 0:01:20]} 32. Kh1 {[%emt 0:00:07]} Bc3 {[%emt 0:00:07]} 33. Rd1 {[%emt 0:00:39]} b6 {[%emt 0:00:09]} 34. Bd6 {[%emt 0:02:40]} Bf6 {[%emt 0:01:28]} 35. f3 {[%emt 0:02:10]} gxf3 {[%emt 0:00:27]} 36. Rxf3 {[%emt 0:00:01]} Bb2 {[%emt 0:01:07]} 37. Rdf1 {[%emt 0:00:34]} R8xe6 {[%emt 0:00:14]} 38. dxe6 {[%emt 0:00:30]} Rxe6 {[%emt 0:00:04]} 39. Bb4 {[%emt 0:01:40]} a5 {[%emt 0:00:11]} 40. Bd2 {[%emt 0:00:00]} Bg7 {[%emt 0:00:00]} 41. Re1 {[%emt 0:01:31]} 1-0